[Event "Titled Tuesday Blitz December 20 Early 2022"]
[White "Narayanan, Srinath"]
[Black "Ekat, Michael"]
[WhiteFideId "5018420"]
[BlackFideId "4689801"]
[WhiteElo "2559"]
[BlackElo "2051"]
[Result "1-0"]
[Round "02"]
[TimeControl "180+2"]
[Date "2022.12.20"]
[WhiteClock "0:02:14"]
[BlackClock "0:00:30"]

1. d4 {[%clk 0:03:00]}  d5 {[%clk 0:02:56]} 2. Bf4 {[%clk 0:03:00]}  e6 {[%clk 0:02:56]} 3. e3 {[%clk 0:02:59]}  Bd6 {[%clk 0:02:56]} 4. Bg3 {[%clk 0:02:59]}  Nf6 {[%clk 0:02:53]} 5. Nd2 {[%clk 0:02:59]}  O-O {[%clk 0:02:52]} 6. Ngf3 {[%clk 0:03:00]}  c5 {[%clk 0:02:52]} 7. dxc5 {[%clk 0:02:58]}  Bxc5 {[%clk 0:02:49]} 8. Bd3 {[%clk 0:02:59]}  Nc6 {[%clk 0:02:48]} 9. O-O {[%clk 0:02:59]}  Re8 {[%clk 0:02:44]} 10. c4 {[%clk 0:02:58]}  b6 {[%clk 0:02:41]} 11. a3 {[%clk 0:02:57]}  Bb7 {[%clk 0:02:29]} 12. b4 {[%clk 0:02:58]}  Be7 {[%clk 0:02:29]} 13. cxd5 {[%clk 0:02:58]}  Nxd5 {[%clk 0:02:27]} 14. Ne4 {[%clk 0:02:58]}  h6 {[%clk 0:02:25]} 15. Qb3 {[%clk 0:02:56]}  a5 {[%clk 0:02:03]} 16. b5 {[%clk 0:02:51]}  a4 {[%clk 0:01:58]} 17. Qc2 {[%clk 0:02:51]}  Nb8 {[%clk 0:01:43]} 18. Ne5 {[%clk 0:02:43]}  Nd7 {[%clk 0:01:15]} 19. Nc6 {[%clk 0:02:43]}  Bxc6 {[%clk 0:01:12]} 20. bxc6 {[%clk 0:02:44]}  Nc5 {[%clk 0:01:12]} 21. Nxc5 {[%clk 0:02:40]}  Bxc5 {[%clk 0:01:12]} 22. Rfd1 {[%clk 0:02:40]}  Qe7 {[%clk 0:01:07]} 23. Bb5 {[%clk 0:02:29]}  Bxa3 {[%clk 0:00:42]} 24. e4 {[%clk 0:02:28]}  Nb4 {[%clk 0:00:37]} 25. Qc3 {[%clk 0:02:23]}  Na6 {[%clk 0:00:30]} 26. Qxa3 {[%clk 0:02:14]} 1-0


[Site "https://www.chess.com"]

[Event "Titled Tuesday Blitz December 20 Early 2022"]
[White "NodariousBIG"]
[Black "Manukyan_Artak"]
[WhiteElo "2823"]
[BlackElo "2560"]
[Result "1-0"]
[Round "02"]
[TimeControl "180+2"]
[Date "2022.12.20"]
[WhiteClock "0:01:48"]
[BlackClock "0:00:20"]

1. e4 {[%clk 0:03:00]}  c6 {[%clk 0:02:54]} 2. Nc3 {[%clk 0:02:58]}  d5 {[%clk 0:02:55]} 3. g3 {[%clk 0:02:59]}  dxe4 {[%clk 0:02:52]} 4. Bg2 {[%clk 0:02:58]}  Nf6 {[%clk 0:02:53]} 5. Nxe4 {[%clk 0:02:58]}  Nxe4 {[%clk 0:02:54]} 6. Bxe4 {[%clk 0:02:59]}  Nd7 {[%clk 0:02:54]} 7. Qe2 {[%clk 0:03:00]}  Nf6 {[%clk 0:02:54]} 8. Bg2 {[%clk 0:03:00]}  Bg4 {[%clk 0:02:54]} 9. Nf3 {[%clk 0:03:01]}  e6 {[%clk 0:02:53]} 10. h3 {[%clk 0:03:01]}  Bh5 {[%clk 0:02:52]} 11. O-O {[%clk 0:03:01]}  Be7 {[%clk 0:02:52]} 12. c3 {[%clk 0:02:59]}  O-O {[%clk 0:02:50]} 13. d4 {[%clk 0:03:00]}  Nd5 {[%clk 0:02:43]} 14. g4 {[%clk 0:02:58]}  Bg6 {[%clk 0:02:42]} 15. Ne5 {[%clk 0:02:59]}  Bd6 {[%clk 0:02:23]} 16. f4 {[%clk 0:02:57]}  Bxe5 {[%clk 0:02:22]} 17. dxe5 {[%clk 0:02:47]}  Ne7 {[%clk 0:01:53]} 18. Rd1 {[%clk 0:02:41]}  Qc7 {[%clk 0:01:46]} 19. Be3 {[%clk 0:02:39]}  Rfd8 {[%clk 0:01:45]} 20. c4 {[%clk 0:02:37]}  c5 {[%clk 0:01:33]} 21. Qf3 {[%clk 0:02:24]}  Bd3 {[%clk 0:01:16]} 22. b3 {[%clk 0:02:06]}  Rab8 {[%clk 0:00:59]} 23. Bf2 {[%clk 0:02:06]}  Bg6 {[%clk 0:00:54]} 24. Rxd8+ {[%clk 0:02:05]}  Rxd8 {[%clk 0:00:54]} 25. Qxb7 {[%clk 0:02:05]}  Qxb7 {[%clk 0:00:50]} 26. Bxb7 {[%clk 0:02:06]}  Rd7 {[%clk 0:00:36]} 27. Bf3 {[%clk 0:02:02]}  Rd3 {[%clk 0:00:29]} 28. Rd1 {[%clk 0:02:02]}  Rxd1+ {[%clk 0:00:27]} 29. Bxd1 {[%clk 0:02:03]}  f6 {[%clk 0:00:23]} 30. Bxc5 {[%clk 0:02:03]}  Kf7 {[%clk 0:00:23]} 31. exf6 {[%clk 0:01:58]}  gxf6 {[%clk 0:00:23]} 32. Bxa7 {[%clk 0:01:59]}  Bb1 {[%clk 0:00:23]} 33. a4 {[%clk 0:01:57]}  Nc6 {[%clk 0:00:23]} 34. Bb6 {[%clk 0:01:58]}  Nb4 {[%clk 0:00:21]} 35. Bc5 {[%clk 0:01:50]}  Bc2 {[%clk 0:00:21]} 36. Bxc2 {[%clk 0:01:50]}  Nxc2 {[%clk 0:00:21]} 37. a5 {[%clk 0:01:50]}  Na1 {[%clk 0:00:19]} 38. a6 {[%clk 0:01:48]}  Nxb3 {[%clk 0:00:20]} 39. a7 {[%clk 0:01:48]}  Nxc5 {[%clk 0:00:20]} 40. a8=Q {[%clk 0:01:48]} 1-0


[Site "https://www.chess.com"]

[Event "Titled Tuesday Blitz December 20 Early 2022"]
[White "PattyCastillo"]
[Black "Pietrek, Gerhard"]
[BlackFideId "24631698"]
[WhiteElo "1827"]
[BlackElo "1596"]
[Result "0-1"]
[Round "02"]
[TimeControl "180+2"]
[Date "2022.12.20"]
[WhiteClock "0:02:16"]
[BlackClock "0:02:09"]

1. d4 {[%clk 0:02:56]}  d5 {[%clk 0:02:58]} 2. Nf3 {[%clk 0:02:55]}  Nf6 {[%clk 0:02:56]} 3. e3 {[%clk 0:02:55]}  c5 {[%clk 0:02:55]} 4. Bd3 {[%clk 0:02:53]}  Nc6 {[%clk 0:02:55]} 5. b3 {[%clk 0:02:51]}  Bg4 {[%clk 0:02:53]} 6. Bb2 {[%clk 0:02:49]}  cxd4 {[%clk 0:02:52]} 7. exd4 {[%clk 0:02:48]}  e6 {[%clk 0:02:53]} 8. O-O {[%clk 0:02:47]}  Bd6 {[%clk 0:02:45]} 9. Nbd2 {[%clk 0:02:45]}  O-O {[%clk 0:02:44]} 10. Re1 {[%clk 0:02:44]}  Rc8 {[%clk 0:02:37]} 11. a3 {[%clk 0:02:43]}  a6 {[%clk 0:02:33]} 12. Nf1 {[%clk 0:02:42]}  b5 {[%clk 0:02:31]} 13. Ne3 {[%clk 0:02:42]}  Bh5 {[%clk 0:02:30]} 14. Rc1 {[%clk 0:02:38]}  Qb6 {[%clk 0:02:26]} 15. Be2 {[%clk 0:02:33]}  Rfd8 {[%clk 0:02:22]} 16. Ne5 {[%clk 0:02:30]}  Bxe2 {[%clk 0:02:20]} 17. Qxe2 {[%clk 0:02:26]}  Nxd4 {[%clk 0:02:17]} 18. Bxd4 {[%clk 0:02:25]}  Qxd4 {[%clk 0:02:18]} 19. Nf3 {[%clk 0:02:21]}  Qc3 {[%clk 0:02:11]} 20. Red1 {[%clk 0:02:16]}  Bxa3 {[%clk 0:02:09]} 0-1


[Site "https://www.chess.com"]

[Event "Titled Tuesday Blitz December 20 Early 2022"]
[White "Rakesh, Kumar Jena"]
[Black "Harry_Rakkel"]
[WhiteFideId "5084822"]
[WhiteElo "2303"]
[BlackElo "2611"]
[Result "0-1"]
[Round "02"]
[TimeControl "180+2"]
[Date "2022.12.20"]
[WhiteClock "0:01:26"]
[BlackClock "0:01:37"]

1. e4 {[%clk 0:02:55]}  c5 {[%clk 0:02:58]} 2. Nf3 {[%clk 0:02:55]}  e6 {[%clk 0:02:58]} 3. c4 {[%clk 0:02:54]}  Nc6 {[%clk 0:02:53]} 4. d4 {[%clk 0:02:53]}  cxd4 {[%clk 0:02:52]} 5. Nxd4 {[%clk 0:02:53]}  Nf6 {[%clk 0:02:50]} 6. Nc3 {[%clk 0:02:53]}  Bb4 {[%clk 0:02:46]} 7. Nxc6 {[%clk 0:02:53]}  bxc6 {[%clk 0:02:43]} 8. e5 {[%clk 0:02:48]}  Ne4 {[%clk 0:02:41]} 9. Qd4 {[%clk 0:02:42]}  Qa5 {[%clk 0:02:22]} 10. Bd2 {[%clk 0:02:35]}  Nxd2 {[%clk 0:02:14]} 11. Kxd2 {[%clk 0:02:35]}  Rb8 {[%clk 0:02:11]} 12. b3 {[%clk 0:02:23]}  O-O {[%clk 0:01:58]} 13. Bd3 {[%clk 0:02:18]}  f6 {[%clk 0:01:58]} 14. exf6 {[%clk 0:02:04]}  Rxf6 {[%clk 0:01:55]} 15. Rhe1 {[%clk 0:01:39]}  c5 {[%clk 0:01:38]} 16. Qe5 {[%clk 0:01:35]}  d6 {[%clk 0:01:38]} 17. Qxd6 {[%clk 0:01:30]}  Bxc3+ {[%clk 0:01:38]} 18. Kc2 {[%clk 0:01:26]}  Bxe1 {[%clk 0:01:37]} 0-1


[Site "https://www.chess.com"]

[Event "Titled Tuesday Blitz December 20 Early 2022"]
[White "Rakhmanov_Aleksandr"]
[Black "AttilaTurzo"]
[WhiteElo "2797"]
[BlackElo "2578"]
[Result "1-0"]
[Round "02"]
[TimeControl "180+2"]
[Date "2022.12.20"]
[WhiteClock "0:00:13"]
[BlackClock "0:00:35"]

1. d4 {[%clk 0:02:54]}  Nf6 {[%clk 0:02:58]} 2. c4 {[%clk 0:02:54]}  e6 {[%clk 0:02:58]} 3. Nc3 {[%clk 0:02:54]}  Bb4 {[%clk 0:02:57]} 4. e3 {[%clk 0:02:54]}  b6 {[%clk 0:02:56]} 5. Bd3 {[%clk 0:02:53]}  Bb7 {[%clk 0:02:55]} 6. Ne2 {[%clk 0:02:54]}  c5 {[%clk 0:02:53]} 7. O-O {[%clk 0:02:50]}  O-O {[%clk 0:02:48]} 8. a3 {[%clk 0:02:47]}  Ba5 {[%clk 0:02:44]} 9. Rb1 {[%clk 0:02:47]}  cxd4 {[%clk 0:02:42]} 10. exd4 {[%clk 0:02:43]}  Bxc3 {[%clk 0:02:42]} 11. Nxc3 {[%clk 0:02:27]}  d5 {[%clk 0:02:42]} 12. cxd5 {[%clk 0:02:19]}  Nxd5 {[%clk 0:02:41]} 13. Qh5 {[%clk 0:01:56]}  g6 {[%clk 0:02:38]} 14. Qh3 {[%clk 0:01:48]}  Nxc3 {[%clk 0:02:29]} 15. bxc3 {[%clk 0:01:46]}  Nd7 {[%clk 0:02:26]} 16. Bb2 {[%clk 0:01:20]}  Nf6 {[%clk 0:02:03]} 17. c4 {[%clk 0:01:17]}  Nh5 {[%clk 0:02:03]} 18. Qe3 {[%clk 0:01:04]}  Qh4 {[%clk 0:02:00]} 19. g3 {[%clk 0:00:56]}  Qh3 {[%clk 0:01:51]} 20. d5 {[%clk 0:00:36]}  exd5 {[%clk 0:01:46]} 21. Qd4 {[%clk 0:00:35]}  f6 {[%clk 0:01:45]} 22. cxd5 {[%clk 0:00:32]}  Rad8 {[%clk 0:01:39]} 23. Be4 {[%clk 0:00:24]}  Ng7 {[%clk 0:01:32]} 24. Bg2 {[%clk 0:00:21]}  Qd7 {[%clk 0:01:29]} 25. Rbd1 {[%clk 0:00:22]}  Nf5 {[%clk 0:01:27]} 26. Qd3 {[%clk 0:00:18]}  Nd6 {[%clk 0:01:27]} 27. Rfe1 {[%clk 0:00:18]}  Rde8 {[%clk 0:01:26]} 28. h4 {[%clk 0:00:18]}  Rxe1+ {[%clk 0:01:24]} 29. Rxe1 {[%clk 0:00:19]}  Re8 {[%clk 0:01:23]} 30. Re6 {[%clk 0:00:20]}  Rxe6 {[%clk 0:01:14]} 31. dxe6 {[%clk 0:00:21]}  Qe7 {[%clk 0:01:10]} 32. Bxb7 {[%clk 0:00:20]}  Nxb7 {[%clk 0:01:07]} 33. Qd5 {[%clk 0:00:14]}  Nc5 {[%clk 0:00:59]} 34. Bxf6 {[%clk 0:00:14]}  Qxe6 {[%clk 0:00:58]} 35. Qd8+ {[%clk 0:00:13]}  Kf7 {[%clk 0:00:57]} 36. Bd4 {[%clk 0:00:13]}  Qe7 {[%clk 0:00:54]} 37. Qh8 {[%clk 0:00:13]}  Ke6 {[%clk 0:00:53]} 38. Qe5+ {[%clk 0:00:13]}  Kd7 {[%clk 0:00:52]} 39. Qd5+ {[%clk 0:00:14]}  Qd6 {[%clk 0:00:48]} 40. Qf7+ {[%clk 0:00:14]}  Qe7 {[%clk 0:00:49]} 41. Qf3 {[%clk 0:00:14]}  Qe4 {[%clk 0:00:45]} 42. Qf7+ {[%clk 0:00:15]}  Qe7 {[%clk 0:00:45]} 43. Qg8 {[%clk 0:00:15]}  Qe1+ {[%clk 0:00:43]} 44. Kh2 {[%clk 0:00:14]}  Qe7 {[%clk 0:00:42]} 45. Be3 {[%clk 0:00:14]}  Kc6 {[%clk 0:00:41]} 46. Qc8+ {[%clk 0:00:14]}  Kb5 {[%clk 0:00:40]} 47. Qg8 {[%clk 0:00:13]}  Ka4 {[%clk 0:00:39]} 48. Qc4+ {[%clk 0:00:13]}  Ka5 {[%clk 0:00:35]} 49. Bd2# {[%clk 0:00:13]} 1-0


[Site "https://www.chess.com"]

[Event "Titled Tuesday Blitz December 20 Early 2022"]
[White "RamyresCoelho"]
[Black "GiorgianBarbosa"]
[WhiteElo "2223"]
[BlackElo "2484"]
[Result "0-1"]
[Round "02"]
[TimeControl "180+2"]
[Date "2022.12.20"]
[WhiteClock "0:00:01"]
[BlackClock "0:00:33"]

1. e4 {[%clk 0:03:00]}  c5 {[%clk 0:02:59]} 2. Nf3 {[%clk 0:02:59]}  d6 {[%clk 0:02:59]} 3. d4 {[%clk 0:03:00]}  cxd4 {[%clk 0:03:00]} 4. Nxd4 {[%clk 0:03:01]}  Nf6 {[%clk 0:03:01]} 5. Nc3 {[%clk 0:03:01]}  g6 {[%clk 0:03:02]} 6. f4 {[%clk 0:03:01]}  Bg7 {[%clk 0:03:02]} 7. e5 {[%clk 0:03:02]}  Nh5 {[%clk 0:02:51]} 8. g4 {[%clk 0:02:50]}  Nxf4 {[%clk 0:02:50]} 9. Bxf4 {[%clk 0:02:47]}  dxe5 {[%clk 0:02:50]} 10. Bb5+ {[%clk 0:02:47]}  Bd7 {[%clk 0:02:46]} 11. Bxd7+ {[%clk 0:02:19]}  Nxd7 {[%clk 0:02:42]} 12. Be3 {[%clk 0:02:00]}  exd4 {[%clk 0:02:36]} 13. Bxd4 {[%clk 0:02:00]}  e5 {[%clk 0:02:29]} 14. Be3 {[%clk 0:01:55]}  O-O {[%clk 0:02:28]} 15. O-O {[%clk 0:01:53]}  Rc8 {[%clk 0:02:18]} 16. Qd5 {[%clk 0:01:52]}  Nb6 {[%clk 0:02:14]} 17. Qxb7 {[%clk 0:01:50]}  Nc4 {[%clk 0:02:11]} 18. Bxa7 {[%clk 0:01:45]}  Rc7 {[%clk 0:02:01]} 19. Qa6 {[%clk 0:01:34]}  Qa8 {[%clk 0:01:57]} 20. Nb5 {[%clk 0:01:33]}  Ne3 {[%clk 0:01:29]} 21. Rf2 {[%clk 0:01:21]}  Rc4 {[%clk 0:01:28]} 22. h3 {[%clk 0:00:47]}  Nxg4 {[%clk 0:01:15]} 23. hxg4 {[%clk 0:00:45]}  Rxg4+ {[%clk 0:01:16]} 24. Kh2 {[%clk 0:00:40]}  Rh4+ {[%clk 0:01:15]} 25. Kg3 {[%clk 0:00:38]}  Qe4 {[%clk 0:01:15]} 26. Rf3 {[%clk 0:00:28]}  Bh6 {[%clk 0:00:52]} 27. Be3 {[%clk 0:00:11]}  Qg4+ {[%clk 0:00:40]} 28. Kf2 {[%clk 0:00:10]}  Rh2+ {[%clk 0:00:40]} 29. Ke1 {[%clk 0:00:09]}  Qxf3 {[%clk 0:00:39]} 30. Nd6 {[%clk 0:00:07]}  Bxe3 {[%clk 0:00:34]} 31. Qf1 {[%clk 0:00:01]}  Bd2# {[%clk 0:00:33]} 0-1


[Site "https://www.chess.com"]

[Event "Titled Tuesday Blitz December 20 Early 2022"]
[White "Rosenberg, Sergei G"]
[Black "Mikhail_Bryakin"]
[WhiteFideId "4102444"]
[WhiteElo "2418"]
[BlackElo "2765"]
[Result "0-1"]
[Round "02"]
[TimeControl "180+2"]
[Date "2022.12.20"]
[WhiteClock "0:00:07"]
[BlackClock "0:01:03"]

1. d4 {[%clk 0:03:00]}  Nf6 {[%clk 0:02:54]} 2. Nf3 {[%clk 0:03:01]}  c5 {[%clk 0:02:54]} 3. d5 {[%clk 0:03:01]}  b5 {[%clk 0:02:53]} 4. e4 {[%clk 0:03:00]}  Nxe4 {[%clk 0:02:53]} 5. Bd3 {[%clk 0:03:00]}  Nf6 {[%clk 0:02:51]} 6. O-O {[%clk 0:02:48]}  c4 {[%clk 0:02:48]} 7. Be2 {[%clk 0:02:46]}  Bb7 {[%clk 0:02:43]} 8. a4 {[%clk 0:02:36]}  a6 {[%clk 0:02:39]} 9. axb5 {[%clk 0:02:35]}  axb5 {[%clk 0:02:40]} 10. Rxa8 {[%clk 0:02:35]}  Bxa8 {[%clk 0:02:40]} 11. d6 {[%clk 0:02:08]}  e6 {[%clk 0:02:28]} 12. Nc3 {[%clk 0:02:02]}  Qb6 {[%clk 0:02:26]} 13. Be3 {[%clk 0:01:54]}  Qxd6 {[%clk 0:02:10]} 14. Nxb5 {[%clk 0:01:54]}  Qxd1 {[%clk 0:02:09]} 15. Rxd1 {[%clk 0:01:52]}  Bxf3 {[%clk 0:02:09]} 16. gxf3 {[%clk 0:01:37]}  d5 {[%clk 0:02:08]} 17. Bxc4 {[%clk 0:01:31]}  Nc6 {[%clk 0:02:03]} 18. Bb3 {[%clk 0:01:18]}  Bb4 {[%clk 0:01:58]} 19. c3 {[%clk 0:01:13]}  Be7 {[%clk 0:01:56]} 20. Nc7+ {[%clk 0:01:10]}  Kd7 {[%clk 0:01:49]} 21. Na6 {[%clk 0:00:56]}  Ra8 {[%clk 0:01:45]} 22. Nc5+ {[%clk 0:00:45]}  Bxc5 {[%clk 0:01:46]} 23. Bxc5 {[%clk 0:00:46]}  Rb8 {[%clk 0:01:46]} 24. Ba4 {[%clk 0:00:46]}  Rxb2 {[%clk 0:01:47]} 25. c4 {[%clk 0:00:38]}  Ra2 {[%clk 0:01:35]} 26. Bb5 {[%clk 0:00:34]}  Rc2 {[%clk 0:01:28]} 27. Bd4 {[%clk 0:00:32]}  Ne8 {[%clk 0:01:09]} 28. cxd5 {[%clk 0:00:28]}  exd5 {[%clk 0:01:10]} 29. Ra1 {[%clk 0:00:25]}  Nc7 {[%clk 0:01:05]} 30. Bxc6+ {[%clk 0:00:16]}  Rxc6 {[%clk 0:01:06]} 31. Ra7 {[%clk 0:00:12]}  f6 {[%clk 0:01:06]} 32. f4 {[%clk 0:00:11]}  Ke6 {[%clk 0:01:05]} 33. Kg2 {[%clk 0:00:10]}  Kf5 {[%clk 0:01:06]} 34. Be3 {[%clk 0:00:10]}  h5 {[%clk 0:01:06]} 35. h4 {[%clk 0:00:09]}  g6 {[%clk 0:01:06]} 36. Rb7 {[%clk 0:00:08]}  Ne6 {[%clk 0:01:06]} 37. Rf7 {[%clk 0:00:06]}  Nxf4+ {[%clk 0:01:06]} 38. Kf3 {[%clk 0:00:06]}  Ne6 {[%clk 0:01:03]} 39. Kg2 {[%clk 0:00:04]}  d4 {[%clk 0:01:03]} 40. Bd2 {[%clk 0:00:04]}  Rc7 {[%clk 0:01:00]} 41. Rxc7 {[%clk 0:00:03]}  Nxc7 {[%clk 0:01:01]} 42. Kf3 {[%clk 0:00:02]}  Nd5 {[%clk 0:01:02]} 43. Ke2 {[%clk 0:00:03]}  Ke4 {[%clk 0:01:00]} 44. f3+ {[%clk 0:00:03]}  Kf5 {[%clk 0:00:58]} 45. Kd3 {[%clk 0:00:04]}  Nf4+ {[%clk 0:00:59]} 46. Kxd4 {[%clk 0:00:04]}  Ng2 {[%clk 0:00:59]} 47. Kd5 {[%clk 0:00:02]}  Nxh4 {[%clk 0:00:59]} 48. f4 {[%clk 0:00:02]}  Ng2 {[%clk 0:00:59]} 49. Kd6 {[%clk 0:00:02]}  Nxf4 {[%clk 0:00:59]} 50. Ke7 {[%clk 0:00:03]}  h4 {[%clk 0:00:59]} 51. Be1 {[%clk 0:00:02]}  g5 {[%clk 0:01:00]} 52. Bf2 {[%clk 0:00:02]}  Nh5 {[%clk 0:00:59]} 53. Kd6 {[%clk 0:00:02]}  h3 {[%clk 0:00:59]} 54. Bg1 {[%clk 0:00:02]}  Ng3 {[%clk 0:00:58]} 55. Kd5 {[%clk 0:00:02]}  Nf1 {[%clk 0:00:58]} 56. Kd4 {[%clk 0:00:01]}  h2 {[%clk 0:00:59]} 57. Bxh2 {[%clk 0:00:02]}  Nxh2 {[%clk 0:01:00]} 58. Ke3 {[%clk 0:00:03]}  Kg4 {[%clk 0:01:00]} 59. Kf2 {[%clk 0:00:04]}  Kh3 {[%clk 0:01:01]} 60. Kg1 {[%clk 0:00:04]}  g4 {[%clk 0:01:01]} 61. Kh1 {[%clk 0:00:05]}  g3 {[%clk 0:01:02]} 62. Kg1 {[%clk 0:00:06]}  Nf3+ {[%clk 0:01:02]} 63. Kh1 {[%clk 0:00:07]}  g2# {[%clk 0:01:03]} 0-1


[Site "https://www.chess.com"]

[Event "Titled Tuesday Blitz December 20 Early 2022"]
[White "Sanan_Sjugirov"]
[Black "Chesca, Alexandru"]
[BlackFideId "1214438"]
[WhiteElo "2933"]
[BlackElo "1917"]
[Result "1-0"]
[Round "02"]
[TimeControl "180+2"]
[Date "2022.12.20"]
[WhiteClock "0:00:03"]
[BlackClock "0:00:09"]

1. e4 {[%clk 0:03:00]}  c5 {[%clk 0:02:56]} 2. Nf3 {[%clk 0:03:00]}  Nc6 {[%clk 0:02:56]} 3. Bb5 {[%clk 0:02:59]}  Nf6 {[%clk 0:02:55]} 4. Bxc6 {[%clk 0:02:55]}  dxc6 {[%clk 0:02:54]} 5. d3 {[%clk 0:02:56]}  Bg4 {[%clk 0:02:53]} 6. Nbd2 {[%clk 0:02:54]}  e6 {[%clk 0:02:49]} 7. h3 {[%clk 0:02:53]}  Bh5 {[%clk 0:02:49]} 8. g4 {[%clk 0:02:52]}  Bg6 {[%clk 0:02:49]} 9. Qe2 {[%clk 0:02:50]}  Qc7 {[%clk 0:02:49]} 10. Nc4 {[%clk 0:02:47]}  Nd7 {[%clk 0:02:45]} 11. a4 {[%clk 0:02:39]}  Be7 {[%clk 0:02:42]} 12. Bd2 {[%clk 0:02:30]}  e5 {[%clk 0:02:30]} 13. Bc3 {[%clk 0:02:22]}  f6 {[%clk 0:02:30]} 14. Nh4 {[%clk 0:02:22]}  Nf8 {[%clk 0:02:30]} 15. Nf5 {[%clk 0:02:21]}  Ne6 {[%clk 0:02:27]} 16. Bd2 {[%clk 0:02:02]}  O-O-O {[%clk 0:02:16]} 17. Be3 {[%clk 0:01:56]}  h5 {[%clk 0:01:51]} 18. Nxe7+ {[%clk 0:01:51]}  Qxe7 {[%clk 0:01:49]} 19. O-O-O {[%clk 0:01:52]}  Bf7 {[%clk 0:01:42]} 20. Qe1 {[%clk 0:01:30]}  Qc7 {[%clk 0:01:40]} 21. Qc3 {[%clk 0:01:25]}  Nd4 {[%clk 0:01:32]} 22. Bxd4 {[%clk 0:01:15]}  Rxd4 {[%clk 0:01:33]} 23. b3 {[%clk 0:01:12]}  Bxc4 {[%clk 0:01:28]} 24. bxc4 {[%clk 0:01:12]}  Rdd8 {[%clk 0:01:14]} 25. Rdg1 {[%clk 0:01:11]}  g5 {[%clk 0:01:11]} 26. h4 {[%clk 0:01:07]}  hxg4 {[%clk 0:01:09]} 27. hxg5 {[%clk 0:01:04]}  Rxh1 {[%clk 0:01:01]} 28. Rxh1 {[%clk 0:01:05]}  Qg7 {[%clk 0:01:00]} 29. gxf6 {[%clk 0:01:01]}  Qxf6 {[%clk 0:01:01]} 30. Kb2 {[%clk 0:00:48]}  Kb8 {[%clk 0:00:55]} 31. Rg1 {[%clk 0:00:46]}  Rg8 {[%clk 0:00:53]} 32. Rg3 {[%clk 0:00:35]}  Rg5 {[%clk 0:00:50]} 33. Qe1 {[%clk 0:00:28]}  Qf4 {[%clk 0:00:41]} 34. Qe2 {[%clk 0:00:19]}  Rg7 {[%clk 0:00:37]} 35. Qe1 {[%clk 0:00:09]}  a6 {[%clk 0:00:32]} 36. a5 {[%clk 0:00:08]}  Rg5 {[%clk 0:00:24]} 37. Kc3 {[%clk 0:00:08]}  Rg8 {[%clk 0:00:23]} 38. Qg1 {[%clk 0:00:07]}  Qf6 {[%clk 0:00:09]} 39. f3 {[%clk 0:00:05]}  Qd8 {[%clk 0:00:09]} 40. Qxc5 {[%clk 0:00:03]} 1-0


[Site "https://www.chess.com"]

[Event "Titled Tuesday Blitz December 20 Early 2022"]
[White "Schless, Sebastian"]
[Black "Abd El Fatah, Reda Fadel"]
[WhiteFideId "4697987"]
[BlackFideId "10600752"]
[WhiteElo "2056"]
[BlackElo "2134"]
[Result "1-0"]
[Round "02"]
[TimeControl "180+2"]
[Date "2022.12.20"]
[WhiteClock "0:00:12"]
[BlackClock "0:00:16"]

1. e4 {[%clk 0:02:59]}  e5 {[%clk 0:03:00]} 2. Nf3 {[%clk 0:02:58]}  d6 {[%clk 0:03:00]} 3. Bc4 {[%clk 0:02:58]}  Be7 {[%clk 0:02:59]} 4. O-O {[%clk 0:02:57]}  Nf6 {[%clk 0:03:00]} 5. d3 {[%clk 0:02:56]}  O-O {[%clk 0:03:00]} 6. Re1 {[%clk 0:02:56]}  c5 {[%clk 0:02:59]} 7. Nc3 {[%clk 0:02:54]}  Nc6 {[%clk 0:02:56]} 8. a4 {[%clk 0:02:53]}  Bg4 {[%clk 0:02:55]} 9. h3 {[%clk 0:02:53]}  Bh5 {[%clk 0:02:55]} 10. Nd5 {[%clk 0:02:51]}  Nxd5 {[%clk 0:02:50]} 11. Bxd5 {[%clk 0:02:51]}  Kh8 {[%clk 0:02:48]} 12. g4 {[%clk 0:02:50]}  Bg6 {[%clk 0:02:48]} 13. c3 {[%clk 0:02:48]}  f6 {[%clk 0:02:44]} 14. Kg2 {[%clk 0:02:46]}  Qc7 {[%clk 0:02:31]} 15. Nh4 {[%clk 0:02:43]}  Bf7 {[%clk 0:02:31]} 16. Nf5 {[%clk 0:02:44]}  Bxd5 {[%clk 0:02:27]} 17. exd5 {[%clk 0:02:44]}  Nd8 {[%clk 0:02:27]} 18. b4 {[%clk 0:02:30]}  g6 {[%clk 0:02:08]} 19. Nxe7 {[%clk 0:02:26]}  Qxe7 {[%clk 0:02:01]} 20. bxc5 {[%clk 0:02:26]}  dxc5 {[%clk 0:02:02]} 21. d4 {[%clk 0:02:26]}  b6 {[%clk 0:01:49]} 22. dxe5 {[%clk 0:02:17]}  fxe5 {[%clk 0:01:48]} 23. c4 {[%clk 0:02:17]}  Nf7 {[%clk 0:01:43]} 24. Bb2 {[%clk 0:02:16]}  Kg8 {[%clk 0:01:42]} 25. Ra3 {[%clk 0:02:12]}  Rae8 {[%clk 0:01:41]} 26. Rae3 {[%clk 0:02:11]}  Qh4 {[%clk 0:01:21]} 27. Qe2 {[%clk 0:01:36]}  Nd6 {[%clk 0:01:17]} 28. Rxe5 {[%clk 0:01:16]}  Rxe5 {[%clk 0:01:15]} 29. Bxe5 {[%clk 0:01:17]}  Ne4 {[%clk 0:01:04]} 30. Qxe4 {[%clk 0:00:39]}  Qxf2+ {[%clk 0:00:43]} 31. Kh1 {[%clk 0:00:39]}  Rf3 {[%clk 0:00:43]} 32. Bh2 {[%clk 0:00:34]}  Rxh3 {[%clk 0:00:40]} 33. Qe6+ {[%clk 0:00:15]}  Kg7 {[%clk 0:00:40]} 34. Qd7+ {[%clk 0:00:14]}  Kh6 {[%clk 0:00:33]} 35. g5+ {[%clk 0:00:14]}  Kxg5 {[%clk 0:00:34]} 36. Rg1+ {[%clk 0:00:13]}  Rg3 {[%clk 0:00:16]} 37. Rxg3+ {[%clk 0:00:12]} 1-0


[Site "https://www.chess.com"]